Cogmind - Beta 13 @@@ ROGUE MODE // 2024.04.17 @ 22:45:18 Player: Gargash Result: Destroyed by G-67 Veteran with Field Laser Performance ------------- Evolutions (6) 3000 Regions Visited (12) 2400 Robots Destroyed (52) 260 Value Destroyed (2258) 2258 Prototype IDs (10) 200 Alien Tech Used (0) 0 Bonus (2113) 2113 TOTAL SCORE: 10231 Bonus ------- High Alert Combat Kills 22 Entered DSFs 500 Met Warlord at Base 500 MAIN.C Attacked Warlord 500 Warlord Defense Kills 728 Friendly Fire -137 Cogmind --------- Core Integrity 0/1150 Matter 300/300 Energy 98/100 System Corruption 0% Temperature Cool (9) Movement Core (50) Location -3/Proximity Caves Parts ------- > --- POWER (2) -------- (None) > --- PROPULSION (6) --- (None) > --- UTILITY (8) ------ Experimental Optical Array Advanced Targeting Computer > --- WEAPON (3) ------- (None) > --- INVENTORY (5) ---- (None) Peak State ------------ > --- POWER ------------ Light Quantum Reactor Light Quantum Reactor > --- PROPULSION ------- Xenon Bombardment Thruster Nuclear Pulse Thruster Nuclear Pulse Array Impulse Thruster Array > --- UTILITY ---------- Advanced Heat Sink Advanced Heat Sink Advanced Visual Processing Unit Experimental Optical Array Advanced Targeting Computer Advanced Target Analyzer Improved Weapon Cycler Experimental Reaction Control System > --- WEAPON ----------- High-powered Shock Rifle Heavy Machine Gun Plasma Lance > --- INVENTORY -------- Light Antimatter Reactor Advanced Heat Sink Plasma Rifle Heavy Beamcaster Vortex Cannon [Rating: 123] Favorites ----------- Power Fission Core Engine Light Ion Engine Power Core Fission Core Reactor Light Quantum Reactor Propulsion Nuclear Pulse Thruster Leg Flexi-carbon Leg Wheel Armored Wheel Flight Unit Nuclear Pulse Thruster Utility Advanced Targeting Computer Device Improved Coolant Injector Storage Small Storage Unit Processor Advanced Targeting Computer Hackware Authchip [Processor] Protection Light Armor Plating Weapon Thermic Laser Energy Gun Thermic Laser Energy Cannon HERF Cannon Ballistic Gun Assault Rifle Ballistic Cannon Magnetic Acceleration Cannon Launcher Grenade Launcher Impact Weapon Mace Piercing Weapon Plasma Lance Special Melee Weapon Improved Datajack Build | -11 -10 -9 -8 -7 -7 -6 -5 -4 -4 -4 -4 -3 ------- Run | Yrd Mat Mat Mat Fac DSF Fac Fac Fac Upp Upp War Pro Slots Evolved 12 | . . 2 2 2 . 2 2 2 . . . . Power 1 | . . . . . . . 1 . . . . . Propulsion 4 | . . 1 1 1 . . . 1 . . . . Utility 6 | . . 1 1 1 . 1 1 1 . . . . Weapon 1 | . . . . . . 1 . . . . . . Parts Attached 151 | 7 7 23 6 9 3 19 2 12 9 3 30 21 Power 24 | 2 . 4 . 1 1 2 . 2 1 . 6 5 Engine 10 | 2 . 4 . 1 1 . . . . . . 2 Core 3 | . . . . . . 1 . 1 . . 1 . Reactor 11 | . . . . . . 1 . 1 1 . 5 3 Propulsion 30 | 2 4 5 3 2 . 4 1 4 1 . 2 2 Treads . | . . . . . . . . . . . . . Leg 1 | . . . . . . . . . . . . 1 Wheel 9 | 2 4 2 . . . . . . . . . 1 Hover . | . . . . . . . . . . . . . Flight 20 | . . 3 3 2 . 4 1 4 1 . 2 . Utility 47 | 1 1 8 1 4 . 8 . 2 4 1 14 3 Device 30 | . 1 3 1 1 . 5 . 1 3 1 11 3 Storage 1 | 1 . . . . . . . . . . . . Processor 10 | . . 2 . 2 . 2 . 1 1 . 2 . Hackware 1 | . . . . . . 1 . . . . . . Protection 5 | . . 3 . 1 . . . . . . 1 . Artifact . | . . . . . . . . . . . . . Weapon 50 | 2 2 6 2 2 2 5 1 4 3 2 8 11 Energy Gun 19 | 1 . 1 . 1 . 2 1 1 1 2 5 4 Energy Cannon 9 | . . 3 . . . . . . 1 . 1 4 Ballistic Gun 9 | 1 1 . 1 . . 1 . 3 1 . 1 . Ballistic Cannon 3 | . . . . . 2 1 . . . . . . Launcher 2 | . 1 1 . . . . . . . . . . Special Weapon . | . . . . . . . . . . . . . Impact Weapon 3 | . . 1 . 1 . 1 . . . . . . Slashing Weapon . | . . . . . . . . . . . . . Piercing Weapon 4 | . . . . . . . . . . . 1 3 Special Melee Weapon 1 | . . . 1 . . . . . . . . . Unidentified Prototypes 10 | . . 1 . 2 . 1 . . . . 6 . Parts Lost 35 | . . 1 . 1 2 1 . . 2 2 1 25 Power 5 | . . . . 1 . . . . . . . 4 Propulsion 11 | . . . . . 1 1 . . 1 1 1 6 Utility 11 | . . 1 . . 1 . . . 1 . . 8 Weapon 8 | . . . . . . . . . . 1 . 7 Highest Loss Streak 9 | . . 1 . 1 2 1 . . 1 1 1 9 To Critical Strikes 2 | . . . . . . . . . 1 1 . . Average Slot Usage (%) 83 | . 99 96 100 100 90 93 84 83 85 83 81 49 Engine 3 | . 14 11 9 7 7 2 . . . . . . Core 1 | . . . . . . 3 5 5 5 5 2 . Reactor 1 | . . . . . . . . . . . 2 4 Wheel 5 | . 28 24 . . . . . . . . . . Flight 17 | . . 7 36 38 35 32 29 25 25 24 20 2 Device 14 | . 13 7 18 15 13 10 5 8 14 17 19 12 Storage 2 | . 14 8 . . . . . . . . . . Processor 13 | . . 8 9 15 15 21 23 24 18 15 15 14 Hackware 2 | . . . . . . 3 5 5 5 5 3 . Protection 1 | . . 5 9 7 5 . . . . . 1 . Energy Gun 7 | . 14 3 1 4 5 6 2 4 9 10 11 6 Energy Cannon 1 | . . 11 . . . . . . 3 3 . . Ballistic Gun 3 | . 12 5 7 2 . 4 . 4 . . 1 . Impact Weapon 1 | . . 1 8 7 1 . 5 5 1 . . . Naked Turns . | . . . . . . . . . . . . . Heaviest Build 55 | 12 14 23 15 19 22 28 26 26 34 35 38 55 Greatest Support 41 | 20 26 36 20 26 26 29 28 35 36 36 41 41 Greatest Overweight (x) 17 | . . 4 . . . . . 1 1 1 1 17 Average Overweight (x) . | . . . . . . . . . . . . 2 Largest Inventory Capacity 8 | 8 8 8 5 5 5 5 5 5 5 5 5 5 Average Capacity 5 | 6 8 7 5 5 5 5 5 5 5 5 5 5 Most Carried 8 | 4 8 8 5 5 5 5 4 5 5 5 5 5 Average Carried 4 | 2 6 7 4 4 4 3 3 4 4 4 4 2 Final Capacity 8 | 8 8 5 5 5 5 5 5 5 5 5 5 5 Final Carried 8 | 4 8 5 5 5 5 5 4 5 5 4 5 . Class Distribution -------------------- 23% | Mutant 22% | Derelict-Sprinter 21% | Sprinter 13% | Scavenger-Sprinter 12% | Scavenger-Mutant 6% | Scout Dominant Class ---------------- Mutant | -10/Materials Mutant | -9/Materials Scout | -8/Materials Sprinter | -7/Factory Sprinter | -7/DSF Sprinter | -6/Factory Sprinter | -5/Factory Sprinter | -4/Factory Derelict-Sprinter | -4/Upper Caves Derelict-Sprinter | -4/Upper Caves Scavenger-Sprinter | -4/Warlord Scavenger-Mutant | -3/Proximity Caves Resources | -11 -10 -9 -8 -7 -7 -6 -5 -4 -4 -4 -4 -3 ----------- Run | Yrd Mat Mat Mat Fac DSF Fac Fac Fac Upp Upp War Pro Matter Collected 1888 | 182 166 254 179 . 42 24 110 38 376 15 330 172 Remotely . | . . . . . . . . . . . . . Salvage Created 2237 | . 242 332 35 . 86 . 110 38 309 . 293 792 Parts 69 | . 3 31 . . 3 . . . 6 . 10 16 Haulers Intercepted 1 | . . 1 . . . . . . . . . . Recyclers Shooed . | . . . . . . . . . . . . . Parts Field Recycled . | . . . . . . . . . . . . . Retrieved Matter . | . . . . . . . . . . . . . Parts Self-Destructed 18 | . . . . . . . . . 4 . . 14 Prevented 5 | . . . . . . . . . 1 . . 4 Kills | -11 -10 -9 -8 -7 -7 -6 -5 -4 -4 -4 -4 -3 ------- Run | Yrd Mat Mat Mat Fac DSF Fac Fac Fac Upp Upp War Pro Combat Hostiles Destroyed 40 | . 4 10 . . 2 . . . 5 . 4 15 Guns 18 | . 3 1 . . . . . . 4 . 4 6 Cannons 13 | . . 5 . . 2 . . . . . . 6 AOE 6 | . 1 4 . . . . . . . . . 1 Classes Destroyed 13 | . 4 4 . . 1 . . . 1 . 2 1 Worker 1 | . 1 . . . . . . . . . . . Hauler 1 | . . 1 . . . . . . . . . . Recycler 1 | . 1 . . . . . . . . . . . Watcher 9 | . 1 3 1 . . . 3 1 . . . . Swarmer 12 | . . 3 . . . . . . 4 . . 5 Grunt 18 | . 4 4 . . 1 . . . . . 2 7 Brawler 2 | . . 1 . . . . . . . . . 1 Duelist 1 | . . . . . . . . . . . . 1 Sentry 4 | . . 2 . . . . . . 1 . . 1 Heavy 1 | . . . . . 1 . . . . . . . Striker 1 | . . . . . . . . . . . 1 . Executioner 1 | . . . . . . . . . . . 1 . Tinkerer 1 | . . . . . . . . . 1 . . . Best Kill Streak 12 | . 3 12 1 . 1 . 3 1 4 . 2 7 Combat Bots Only 10 | . 2 10 . . 1 . . . 4 . 2 7 Max Kills in Single Turn 2 | . 2 2 1 . 1 . 1 1 1 . 1 1 Gunslinging . | . . . . . . . . . . . . . Exploded 2 | . 1 2 . . . . . . . . . 1 Melee . | . . . . . . . . . . . . . Uniques/NPCs Destroyed . | . . . . . . . . . . . . . Combat | -11 -10 -9 -8 -7 -7 -6 -5 -4 -4 -4 -4 -3 -------- Run | Yrd Mat Mat Mat Fac DSF Fac Fac Fac Upp Upp War Pro Hostile Shots Fired 428 | . 11 45 6 . 30 53 . 2 19 10 51 201 Missed 177 | . 4 13 4 . 10 35 . 1 3 5 27 75 Damage Taken 5297 | . 94 492 36 . 521 368 . 18 320 112 396 2940 Core 1370 | . 16 75 . . 52 60 . . 17 . 33 1117 Absorbed by Shields 66 | . . . . . 66 . . . . . . . Redirected to Shielding 47 | . . . . . . . . . . . 11 36 Regen/Repaired (Parts) 100 | . 28 . . . . . . . . . 72 . Core Remaining (%) 94 | 100 93 81 100 . 92 92 100 . . . . . Volleys Fired 131 | . 13 22 6 . 8 2 2 7 12 1 19 39 Largest 3 | . 2 2 1 . 2 3 1 2 3 3 2 3 Hottest 258 | . 80 124 50 . 89 133 85 118 258 258 148 206 Shots Fired 250 | . 21 43 6 . 10 4 2 10 32 3 34 85 Gun 182 | . 19 11 6 . 2 3 2 10 24 2 34 69 Cannon 62 | . . 28 . . 8 1 . . 8 1 . 16 Launcher 6 | . 2 4 . . . . . . . . . . Special . | . . . . . . . . . . . . . Kinetic 45 | . 7 11 1 . 8 2 . 3 . . 5 8 Thermal 126 | . 12 22 5 . . . 2 7 24 2 2 50 Explosive 6 | . 2 4 . . . . . . . . . . Electromagnetic 57 | . . 6 . . 2 2 . . 8 1 27 11 Entropic 16 | . . . . . . . . . . . . 16 Robot Hit Streak 16 | . 9 10 1 . 7 2 1 6 6 . 7 16 Robot Miss Streak 5 | . 2 3 5 . 2 1 2 4 3 . 3 3 Penetration Max . | . . . . . . . . . . . . . Secondary Targets 2 | . . . . . . . . . . . . 2 Max Gunslinging Chain 1 | . . . . . . . . . . . . 1 Shots Hit Robots 163 | . 17 17 4 . 9 2 4 7 14 . 22 67 Core Hits 97 | . 14 27 . . 5 . . 2 7 . 11 31 Critical Kills 1 | . . . . . . . . . . . . 1 Critical Parts Destroyed 4 | . . . 1 . . . 1 1 . . 1 . Critical Strikes 28 | . 1 . 1 . . . 1 3 3 . 3 16 Burn 16 | . 1 . . . . . . 2 3 . . 10 Destroy 3 | . . . . . . . . . . . 2 1 Corrupt 1 | . . . . . . . . . . . 1 . Smash 3 | . . . 1 . . . 1 1 . . . . Sunder 5 | . . . . . . . . . . . . 5 Melee Attacks 8 | . . . 4 . . . 3 1 . . . . Impact 5 | . . . 1 . . . 3 1 . . . . Slashing . | . . . . . . . . . . . . . Piercing . | . . . . . . . . . . . . . Sneak Attacks . | . . . . . . . . . . . . . Combat Hostiles . | . . . . . . . . . . . . . Follow-up Attacks . | . . . . . . . . . . . . . Damage Inflicted 5070 | . 357 1014 49 . 179 35 192 171 362 . 561 2150 Guns 2434 | . 186 25 20 . 20 9 18 120 216 . 561 1259 Cannons 1450 | . . 307 . . 159 26 . . 146 . . 812 Explosions 932 | . 171 682 . . . . . . . . . 79 Melee 254 | . . . 29 . . . 174 51 . . . . Ramming . | . . . . . . . . . . . . . Kinetic 487 | . 61 25 20 . 159 26 . 12 . . 96 88 Thermal 1903 | . 125 360 . . . . 18 108 216 . 54 1022 Explosive 699 | . 171 528 . . . . . . . . . . Electromagnetic 915 | . . 101 . . 20 9 . . 146 . 411 228 Impact 254 | . . . 29 . . . 174 51 . . . . Slashing . | . . . . . . . . . . . . . Piercing . | . . . . . . . . . . . . . Entropic 812 | . . . . . . . . . . . . 812 Highest Corruption . | . . . . . . . . . . . . . Average Corruption . | . . . . . . . . . . . . . Corruption Purged . | . . . . . . . . . . . . . Corruption Blocked . | . . . . . . . . . . . . . Overload Shots . | . . . . . . . . . . . . . Overflow Damage 294 | . . 21 29 . . . 130 51 . . . 63 Projectiles 63 | . . . . . . . . . . . . 63 Explosions 21 | . . 21 . . . . . . . . . . Melee 210 | . . . 29 . . . 130 51 . . . . Knockbacks 2 | . . . . . . . 1 1 . . . . Impact 2 | . . . . . . . 1 1 . . . . Kinetic . | . . . . . . . . . . . . . Secondary . | . . . . . . . . . . . . . Self-Inflicted Damage 84 | . 1 83 . . . . . . . . . . Shots 3 | . 1 2 . . . . . . . . . . Rammed . | . . . . . . . . . . . . . Targets Rammed . | . . . . . . . . . . . . . Kicked . | . . . . . . . . . . . . . Crushed . | . . . . . . . . . . . . . Highest Temperature 496 | . 85 496 50 55 4 109 78 119 198 147 12 6 Average Temperature 73 | . 36 147 26 16 4 55 46 53 99 76 9 6 Received Heat Transfer 802 | . 57 123 . . 36 42 . . 27 21 27 469 Effects 4 | . . 4 . . . . . . . . . . Shutdowns 1 | . . 1 . . . . . . . . . . Matter Decay 1 | . . 1 . . . . . . . . . . Damage (minor) 1 | . . 1 . . . . . . . . . . Damage (major) 1 | . . 1 . . . . . . . . . . Siege Activations . | . . . . . . . . . . . . . Robots Corrupted . | . . . . . . . . . . . . . Combat Hostiles . | . . . . . . . . . . . . . Parts Fried 8 | . . . 1 . . . 5 2 . . . . Impact Corruptions 9 | . . . 1 . . . 7 1 . . . . Robots Melted 3 | . . . . . . . . . 1 . . 2 Combat Hostiles 3 | . . . . . . . . . 1 . . 2 Parts Melted 13 | . 1 . . . . . . . 2 . 1 9 Heat Transferred 5226 | . 444 470 . . . . 50 500 900 . 74 2788 Parts Sabotaged . | . . . . . . . . . . . . . Parts Stolen . | . . . . . . . . . . . . . Parts Stripped . | . . . . . . . . . . . . . Power Chain Reactions 1 | . . . . . . . . . . . . 1 Alert | -11 -10 -9 -8 -7 -7 -6 -5 -4 -4 -4 -4 -3 ------- Run | Yrd Mat Mat Mat Fac DSF Fac Fac Fac Upp Upp War Pro Peak Influence 506 | . 196 506 187 84 100 118 133 125 . . . . Initial 130 | . . 82 130 84 55 46 52 65 . . . . Average 150 | . 152 262 154 75 73 77 89 80 . . . . Maximum Alert Level 2 | . . 2 . . . . . . . . . . Low Security (%) 85 | 100 100 44 100 100 100 100 100 100 . . . . Level 1 6 | . . 25 . . . . . . . . . . Level 2 7 | . . 30 . . . . . . . . . . Level 3 . | . . . . . . . . . . . . . Level 4 . | . . . . . . . . . . . . . Level 5 . | . . . . . . . . . . . . . High Security . | . . . . . . . . . . . . . Max Security . | . . . . . . . . . . . . . Squads Dispatched 10 | . 1 1 2 . 2 1 1 1 . . . 1 Investigation . | . . . . . . . . . . . . . Extermination . | . . . . . . . . . . . . . Reinforcement 8 | . 1 1 2 . 2 1 . 1 . . . . Assault 1 | . . . . . . . . . . . . 1 Garrison 1 | . . . . . . . 1 . . . . . Intercept . | . . . . . . . . . . . . . Searches Triggered . | . . . . . . . . . . . . . Construction Impeded . | . . . . . . . . . . . . . Haulers Reinforced 1 | . . . . . . . . 1 . . . . Active Scanning Responses . | . . . . . . . . . . . . . Cargo Convoy Interrupts . | . . . . . . . . . . . . . Stealth | -11 -10 -9 -8 -7 -7 -6 -5 -4 -4 -4 -4 -3 --------- Run | Yrd Mat Mat Mat Fac DSF Fac Fac Fac Upp Upp War Pro Distress Signals 3 | . . 3 . . . . . . . . . . Communications Jammed . | . . . . . . . . . . . . . Distress Signals . | . . . . . . . . . . . . . Times Spotted 141 | . 7 18 5 . 6 4 3 6 6 5 51 30 Peak Tracking Total 10 | . 2 8 3 . 5 3 2 4 4 5 10 8 Tactical Retreats 10 | . 1 1 . . . 1 . . 1 2 2 2 Traps | -11 -10 -9 -8 -7 -7 -6 -5 -4 -4 -4 -4 -3 ------- Run | Yrd Mat Mat Mat Fac DSF Fac Fac Fac Upp Upp War Pro Traps Triggered 5 | . . . . . 1 1 . 3 . . . . Indirectly . | . . . . . . . . . . . . . Trap Hack Attempts . | . . . . . . . . . . . . . Triggered . | . . . . . . . . . . . . . Disarmed . | . . . . . . . . . . . . . Reprogrammed . | . . . . . . . . . . . . . Reused . | . . . . . . . . . . . . . Traps Extracted . | . . . . . . . . . . . . . Installed . | . . . . . . . . . . . . . Triggered 12 | . . . . . . . . . . . 12 . Machines | -11 -10 -9 -8 -7 -7 -6 -5 -4 -4 -4 -4 -3 ---------- Run | Yrd Mat Mat Mat Fac DSF Fac Fac Fac Upp Upp War Pro Machines Disabled 6 | . 1 3 . . . . . . 1 1 . . Max in Single Turn 2 | . 1 2 . . . . . . 1 1 . . Machines Repaired . | . . . . . . . . . . . . . Machines Dismantled . | . . . . . . . . . . . . . Machines Sabotaged . | . . . . . . . . . . . . . Overloaded Fab Kills . | . . . . . . . . . . . . . Hacking | -11 -10 -9 -8 -7 -7 -6 -5 -4 -4 -4 -4 -3 --------- Run | Yrd Mat Mat Mat Fac DSF Fac Fac Fac Upp Upp War Pro Machines Accessed 13 | . 1 1 1 3 . 1 . 2 . . 4 . Terminals 3 | . . . . 2 . . . 1 . . . . Fabricators . | . . . . . . . . . . . . . Repair Stations 5 | . 1 . 1 1 . 1 . 1 . . . . Recycling Units . | . . . . . . . . . . . . . Scanalyzers 1 | . . 1 . . . . . . . . . . Garrison Access . | . . . . . . . . . . . . . Total Hacks 27 | . 4 2 2 3 . 2 . 3 . . 11 . Successful 21 | . 3 2 2 1 . 1 . 1 . . 11 . Failed 6 | . 1 . . 2 . 1 . 2 . . . . Catastrophic . | . . . . . . . . . . . . . Database Lockouts . | . . . . . . . . . . . . . Manual 2 | . . . . . . . . . . . 2 . Terminals 4 | . . . . 2 . . . 2 . . . . Fabricators . | . . . . . . . . . . . . . Repair Stations 10 | . 4 . 2 1 . 2 . 1 . . . . Recycling Units . | . . . . . . . . . . . . . Scanalyzers 2 | . . 2 . . . . . . . . . . Garrison Access . | . . . . . . . . . . . . . Terminal Hacks 13 | . . . . 1 . . . 1 . . 11 . Record 11 | . . . . . . . . 1 . . 10 . Open Door 1 | . . . . . . . . . . . 1 . Open DSF 1 | . . . . 1 . . . . . . . . Fabricator Hacks . | . . . . . . . . . . . . . Repair Station Hacks 6 | . 3 . 2 . . 1 . . . . . . Scan Component 4 | . 2 . 1 . . 1 . . . . . . Repair 2 | . 1 . 1 . . . . . . . . . Recycling Unit Hacks . | . . . . . . . . . . . . . Scanalyzer 2 | . . 2 . . . . . . . . . . Insert Component 1 | . . 1 . . . . . . . . . . Analyze 1 | . . 1 . . . . . . . . . . Garrison Access Hacks . | . . . . . . . . . . . . . Unauthorized Hacks . | . . . . . . . . . . . . . Terminals . | . . . . . . . . . . . . . Fabricators . | . . . . . . . . . . . . . Repair Stations . | . . . . . . . . . . . . . Recycling Units . | . . . . . . . . . . . . . Scanalyzers . | . . . . . . . . . . . . . Garrison Access . | . . . . . . . . . . . . . Data Cores Recovered . | . . . . . . . . . . . . . Used . | . . . . . . . . . . . . . Hacking Detections 4 | . 1 . . 1 . 1 . 1 . . . . Full Trace Events 1 | . 1 . . . . . . . . . . . Feedback Events . | . . . . . . . . . . . . . Feedback Blocked . | . . . . . . . . . . . . . Robot Schematics Acquired . | . . . . . . . . . . . . . Robots Built . | . . . . . . . . . . . . . Authchips . | . . . . . . . . . . . . . Time . | . . . . . . . . . . . . . Total Robot Build Rating . | . . . . . . . . . . . . . Part Schematics Acquired 1 | . . 1 . . . . . . . . . . Parts Built . | . . . . . . . . . . . . . Authchips . | . . . . . . . . . . . . . Time . | . . . . . . . . . . . . . Total Part Build Rating . | . . . . . . . . . . . . . Parts Repaired 2 | . 1 . 1 . . . . . . . . . Time 89 | . 36 . 53 . . . . . . . . . Parts Recycled . | . . . . . . . . . . . . . Recycled Matter . | . . . . . . . . . . . . . Retrieved Matter . | . . . . . . . . . . . . . Retrieved Components . | . . . . . . . . . . . . . Parts Scanalyzed 1 | . . 1 . . . . . . . . . . Part Schematics Acquired 1 | . . 1 . . . . . . . . . . Parts Damaged 1 | . . 1 . . . . . . . . . . Bothacking | -11 -10 -9 -8 -7 -7 -6 -5 -4 -4 -4 -4 -3 ------------ Run | Yrd Mat Mat Mat Fac DSF Fac Fac Fac Upp Upp War Pro Used RIF Installer . | . . . . . . . . . . . . . Robots Hacked 1 | . . . 1 . . . . . . . . . Non-combat . | . . . . . . . . . . . . . Combat 1 | . . . 1 . . . . . . . . . Robot Hacks Applied 2 | . . . 2 . . . . . . . . . parse_system 2 | . . . 2 . . . . . . . . . Relay Couplers Released . | . . . . . . . . . . . . . Fabnet Peak Effective % . | . . . . . . . . . . . . . Robots Rewired . | . . . . . . . . . . . . . Allies Hacked . | . . . . . . . . . . . . . Hacks Repelled . | . . . . . . . . . . . . . Allies | -11 -10 -9 -8 -7 -7 -6 -5 -4 -4 -4 -4 -3 -------- Run | Yrd Mat Mat Mat Fac DSF Fac Fac Fac Upp Upp War Pro Total Allies . | . . . . . . . . . . . . . Largest Group . | . . . . . . . . . . . . . Highest-Rated Group . | . . . . . . . . . . . . . Highest-Rated Ally . | . . . . . . . . . . . . . Total Orders . | . . . . . . . . . . . . . Ally Attacks . | . . . . . . . . . . . . . Total Damage . | . . . . . . . . . . . . . Kills . | . . . . . . . . . . . . . Allies Corrupted . | . . . . . . . . . . . . . Allies Melted . | . . . . . . . . . . . . . Intel | -11 -10 -9 -8 -7 -7 -6 -5 -4 -4 -4 -4 -3 ------- Run | Yrd Mat Mat Mat Fac DSF Fac Fac Fac Upp Upp War Pro Robot Analysis Total . | . . . . . . . . . . . . . Derelict Logs Recovered 3 | . . . . . . . . . 1 2 . . Drone Launches 10 | . . . . . . . . . . . 10 . Drone Recoveries . | . . . . . . . . . . . . . Exploration | -11 -10 -9 -8 -7 -7 -6 -5 -4 -4 -4 -4 -3 ------------- Run | Yrd Mat Mat Mat Fac DSF Fac Fac Fac Upp Upp War Pro Turns Passed 4008 | 53 367 479 280 131 56 258 69 144 276 295 973 627 Spaces Moved 6622 | 49 329 535 298 449 106 753 203 385 605 939 1645 326 Core 203 | 10 . . . . . . . . . . . 193 Treads . | . . . . . . . . . . . . . Legs 20 | . . . . . . . . . . . . 20 Wheels 643 | 39 329 267 . . . . . . . . . 8 Hover . | . . . . . . . . . . . . . Flight 5756 | . . 268 298 449 106 753 203 385 605 939 1645 105 Fastest Speed 23 | 50 80 29 26 23 24 26 26 26 26 27 31 32 Average Speed 40 | 73 84 60 27 23 25 27 26 26 26 28 32 152 Slowest Speed 900 | 80 90 355 29 24 30 29 26 110 109 111 111 900 Overloaded Moves . | . . . . . . . . . . . . . Propulsion Burnouts . | . . . . . . . . . . . . . Robots Hopped 8 | . . . . . . 3 . . . . 5 . Cave-ins Triggered . | . . . . . . . . . . . . . Exploration Rate (%) 38 | 3 37 36 22 12 90 13 5 11 66 77 94 37 Regions Visited 12 Branch Regions 4 Pre-discovered Areas 1 | . . . . . . . . . . 1 . . Known Exits Taken 1 | . . . . 1 . . . . . . . . Unknown Exits Taken 10 | 1 1 1 1 . . 1 1 1 1 1 1 . Scrap Searched 6 | . . . . . . . . . 4 1 . 1 Spaces Dug . | . . . . . . . . . . . . . Terrain Destroyed 81 | . 15 46 . . . . . . . . . 20 Melee . | . . . . . . . . . . . . . Projectile 7 | . . 1 . . . . . . . . . 6 AOE 74 | . 15 45 . . . . . . . . . 14 Terrain Rammed . | . . . . . . . . . . . . . Walls Destroyed . | . . . . . . . . . . . . . Machines Disabled . | . . . . . . . . . . . . . Actions | -11 -10 -9 -8 -7 -7 -6 -5 -4 -4 -4 -4 -3 --------- Run | Yrd Mat Mat Mat Fac DSF Fac Fac Fac Upp Upp War Pro Total 7743 | 65 398 646 487 476 125 805 210 412 693 964 2059 403 Wait 626 | . 34 34 165 3 . 3 . . 59 18 307 3 Move 6596 | 48 328 534 297 448 105 746 202 384 604 938 1636 326 Hop 6 | . . . . . . 3 . . . . 3 . Pick Up 101 | 10 10 13 5 7 3 19 1 4 1 2 17 9 Fast Attach 43 | . . 6 1 3 . . . 8 6 1 16 2 Attach 63 | 6 1 3 3 3 1 15 2 3 2 1 8 15 Detach 16 | . . . 1 . . 1 . 2 1 . 9 2 Swap 46 | 1 6 14 2 4 2 4 . 1 1 1 6 4 Drop 104 | . 6 20 3 8 3 12 . 2 7 2 38 3 Fire 131 | . 13 22 6 . 8 2 2 7 12 1 19 39 Melee 8 | . . . 4 . . . 3 1 . . . . Ram . | . . . . . . . . . . . . . Kick . | . . . . . . . . . . . . . Crush . | . . . . . . . . . . . . . Escape Stasis 3 | . . . . . 3 . . . . . . . Rewire . | . . . . . . . . . . . . . Trap . | . . . . . . . . . . . . . Miscellaneous . | . . . . . . . . . . . . . Route ------- -11/Scrapyard -10/Materials -9/Materials -8/Materials -7/Factory -7/DSF -6/Factory -5/Factory (discovered 2 exits: *Fac / [*Upp]) -4/Factory -4/Upper Caves -4/Upper Caves -4/Warlord -3/Proximity Caves History --------- Turn | Location | Event 9 | -11/Scrapyard | Discovered new exit (range 16) 54 | -11/Scrapyard | Entered Materials 284 | -10/Materials | Discovered new exit (range 11) 306 | -10/Materials | Build established: Mutant 316 | -10/Materials | Repaired Broken Wheel 421 | -10/Materials | Entered another Materials area 421 | -9/Materials | Evolved 2 slots: Propulsion x1, Utility x1 714 | -9/Materials | Destroyed 10 combat bots 848 | -9/Materials | Discovered new exit (range 16) 900 | -9/Materials | Entered another Materials area 900 | -8/Materials | Evolved 2 slots: Propulsion x1, Utility x1 965 | -8/Materials | Discovered new exit (range 18) 1027 | -8/Materials | Repaired Broken Cesium-ion Thruster 1180 | -8/Materials | Entered Factory 1180 | -7/Factory | Evolved 2 slots: Propulsion x1, Utility x1 1311 | -7/Factory | Identified exit to DSF 1311 | -7/Factory | Entered DSF 1332 | -7/DSF | Additional patrols routed to DSF 1362 | -7/DSF | Discovered new exit (range 18) 1367 | -7/DSF | Entered Factory 1367 | -6/Factory | Evolved 2 slots: Utility x1, Weapon x1 1489 | -6/Factory | Build established: Sprinter 1602 | -6/Factory | Discovered new exit (range 9) 1625 | -6/Factory | Entered another Factory area 1625 | -5/Factory | Evolved 2 slots: Power x1, Utility x1 1657 | -5/Factory | Garrison activated, responded to threat 1664 | -5/Factory | Discovered new exit (range 15) 1671 | -5/Factory | Discovered new exit (range 12) 1694 | -5/Factory | Entered another Factory area 1694 | -4/Factory | Evolved 2 slots: Propulsion x1, Utility x1 1822 | -4/Factory | Discovered new exit (range 15) 1838 | -4/Factory | Entered Upper Caves 1860 | -4/Upper Caves | Learned Research stockpile data 1864 | -4/Upper Caves | Spotted B-86 Titan 2017 | -4/Upper Caves | Discovered new exit (range 8) 2019 | -4/Upper Caves | Attracted the attention of an 0b10 checkpoint 2114 | -4/Upper Caves | Entered another Upper Caves area 2136 | -4/Upper Caves | Encountered a Warlord checkpoint 2204 | -4/Upper Caves | Build established: Derelict-Sprinter 2217 | -4/Upper Caves | Learned Research non-interactive machine intel 2230 | -4/Upper Caves | Discovered new exit (range 8) 2316 | -4/Upper Caves | Attacked by a delusional Derelict stockpiling Unaware 2335 | -4/Upper Caves | Spotted B-86 Titan 2336 | -4/Upper Caves | Learned location of Testing (-3) 2409 | -4/Upper Caves | Entered Warlord 2504 | -4/Warlord | Met Warlord 2529 | -4/Warlord | Warlord's base attacked by MAIN.C 2554 | -4/Warlord | Found Prototype Energy Cannon 2555 | -4/Warlord | Identified Vortex Cannon 2707 | -4/Warlord | Found Prototype Device 2707 | -4/Warlord | Identified Minesniffer Drone Bay 2859 | -4/Warlord | Lost 5 allies 2872 | -4/Warlord | Warlord forces counterattacked 2925 | -4/Warlord | Spotted Striker 2939 | -4/Warlord | Destroyed Striker 2967 | -4/Warlord | Lost 8 allies 2985 | -4/Warlord | Spotted Striker 3015 | -4/Warlord | Spotted Executioner 3022 | -4/Warlord | Destroyed Executioner 3046 | -4/Warlord | Spotted Executioner 3107 | -4/Warlord | Lost 12 allies 3204 | -4/Warlord | Warlord base infiltrated, sounded retreat 3334 | -4/Warlord | Spotted B-90 Cyclops 3334 | -4/Warlord | Spotted Striker 3335 | -4/Warlord | Spotted B-86 Titan 3336 | -4/Warlord | Discovered new exit (range 23) 3382 | -4/Warlord | Entered Proximity Caves 3388 | -3/Proximity Caves | Attracted the attention of an 0b10 outpost 3389 | -3/Proximity Caves | Lost 7 allies 3473 | -3/Proximity Caves | Destroyed 7 combat bots 3482 | -3/Proximity Caves | Lost 6 parts (3n1u2w) 3559 | -3/Proximity Caves | Lost 4 parts (1p2n1u) 3726 | -3/Proximity Caves | Build established: Scavenger-Mutant 3736 | -3/Proximity Caves | Lost 4 parts (1p1n2w) 3840 | -3/Proximity Caves | Spotter reported a threat 3891 | -3/Proximity Caves | Core integrity fell below 50% 3939 | -3/Proximity Caves | Lost 9 parts (1p5u3w) 3980 | -3/Proximity Caves | Attracted the attention of an 0b10 checkpoint 3984 | -3/Proximity Caves | Core integrity fell below 20% 4009 | -3/Proximity Caves | Destroyed by G-67 Veteran with Field Laser Last Messages --------------- Flexi-carbon Leg fries itself beyond repair. Rnf. Antimatter Reactor destroyed. M-36 Artificer repairs L-61 Swordsman. M-36 Artificer repairs G-67 Veteran. Adv. Heat Sink destroyed. Imp. Weapon Cycler destroyed. Searching scrap... Found Shock Absorption System. Found Mak. Power Source. Found Mak. System Shield. Found 26 Matter. Acquired Mak. Power Source. Acquired Shock Absorption System. Acquired 20 matter. Y-72 Warden: "INTERCEPTING UNREGISTERED DERELICT." Mak. Power Source destroyed. Shock Absorption System destroyed. Penetrated by Slug. Slug penetrates Wall. Map ----- +----------------------------------------------------+ | ?????????????????????????????????????????????????? | | ?????????????????????????????????????????????????? | | ?????????????????????????????????????????????????? | | ?????????????????????????????????????????????????? | | ?????????????????????????????????????????????????? | | ?????????????????????????????????????????????????? | | ?????????????????????????????????????????????????? | | ?????????????????????????????????????????????????? | | ?????????????????????????????????????????????????? | | ?????????????????????????????????????????????????? | | ?????????????????????????????????????????????????? | | ?????????????????????#######?????????????????????? | | ????????????????????## #?????????????????????? | | ????????????????????# #?????????????????????? | | ????????????????????# #?????????????????????? | | ????????????#####????# ##????????????????????? | | ?????????#### #????#### #????????????????????? | | ?????????# ##?????#;# #????????????????????? | | ?????????# #?????## #????????????????????? | | ?????????# #????## #????????????????????? | | ?????????# #???## ##????????????????????? | | ?????????## #?### ##?????????????????????? | | ??????????# #?# l #??????????????????????? | | ??????????# #?# #??????????????????????? | | ??????????## ### #??????????????????????? | | ??????????## ##; @#??????????????????????? | | ??????????# ##??????????????????????? | | ??????????## #???????????????????????? | | ???????????## #???????????????????????? | | ????????????## gg Y #???????????????????????? | | ?????????????## ###### ???????????? | | ??????????????## #????????????? | | ??????????###### #????????????? | | ?????????## #???????????? | | ????????## ???????????? | | ???????## ## ???????????? | | ??????## #### ## ###???????????? | | ??????# ##??# ###? ###?????????????? | | ??????# #??? #??? ##???????????????? | | ??????# ##?? #??? #????????????????? | | ???#### #??# ??? ####????????????????? | | ?### ##?# ?? ##???????????????????? | | ?# #?# ## ?? #????????????????????? | | ?## #?###?## #???????????????????????? | | ??# ##??????? ##???????????????????????? | | ?## ##????????######????????????????????????? | | ## ####???????????????????????????????????????? | | # ##?????????????????????????????????????????? | | #?????????????????????????????????????????? | | #?????????????????????????????????????????? | +----------------------------------------------------+ Best States ------------- Heat Dissipation 152 Coolant Potential 160 Energy Generation 41 Energy Capacity 395 Matter Stores 300 Matter Capacity 300 Sight Range 23 Robot Scan Range 14 Terrain Scan Range 16 Terrain Scan Density 210 Armor Coverage 225 Resistance: KI 20 Resistance: EX 25 Propulsion Shielding 33 Weapon Shielding 66 Weapon Cycling 20 Evasion (%) 77 Targeting Accuracy 14 Melee Accuracy 6 Target Analysis 8 Matter Filtering 30 Authchip Count 1 Item Schematics ----------------- Cesium-ion Thruster | -9/Materials | Scanalyzed Robot Schematics ------------------ None Fabricated ------------ Nothing Alien Tech Used ----------------- None Achievements -------------- A Powerful Ally? Can't Catch Me Charge!!! Dodgeball, But With Guns Omniscient Cartographer Release The Drones! Respectable Loadout Challenges ------------ None Game ------ Seed AluminumImprinterSword Manual? 0 Play Time 02:45:59 Cumulative 16.2 hours Start 2024.04.16 @ 21:29:58 End 2024.04.17 @ 22:45:18 Sessions 3 Manual Loads 0 Difficulty Rogue Special Mode None Game No. 12 Rogue 12 Adventurer 0 Explorer 0 Win Type - Total 0 Types 0/0/0/0/0/0/0/0/0 Lore% 19 Gallery% 24 Achievement% 19 Wizard Run 0 Options --------- Layout 1 ASCII 0 Keyboard 0 Movement Mouse Keybinds 0 Fullscreen 1 Font 24/Smallcaps Map View 50x35 Zoom Use 0% Tactical HUD 0 Map Filters NONE Filters NONE Steam 1 RUN: fe8e924c-5685-41c6-9291-bd86932ea260